[Event "Titled Tuesday Blitz May 30 Early 2023"]
[White "OPQRC"]
[Black "Mendonca, Leon Luke"]
[BlackFideId "35028561"]
[WhiteElo "2559"]
[BlackElo "2464"]
[Result "0-1"]
[Round "08"]
[TimeControl "180+2"]
[Date "2023.05.30"]
[WhiteClock "0:00:06"]
[BlackClock "0:01:12"]

1. e4 {[%clk 0:02:57]}  c6 {[%clk 0:02:58]} 2. d4 {[%clk 0:02:54]}  d5 {[%clk 0:02:58]} 3. exd5 {[%clk 0:02:55]}  cxd5 {[%clk 0:02:59]} 4. Bf4 {[%clk 0:02:56]}  Nc6 {[%clk 0:02:58]} 5. c3 {[%clk 0:02:56]}  Nf6 {[%clk 0:02:54]} 6. Nd2 {[%clk 0:02:48]}  Bf5 {[%clk 0:02:53]} 7. Qb3 {[%clk 0:02:42]}  Qd7 {[%clk 0:02:49]} 8. Ngf3 {[%clk 0:02:39]}  e6 {[%clk 0:02:50]} 9. Ne5 {[%clk 0:02:37]}  Qc8 {[%clk 0:02:44]} 10. Be2 {[%clk 0:02:28]}  Nd7 {[%clk 0:02:40]} 11. O-O {[%clk 0:02:24]}  Ndxe5 {[%clk 0:02:40]} 12. dxe5 {[%clk 0:02:24]}  Be7 {[%clk 0:02:38]} 13. Nf3 {[%clk 0:02:22]}  O-O {[%clk 0:02:37]} 14. Nd4 {[%clk 0:02:22]}  Bg6 {[%clk 0:02:38]} 15. Rae1 {[%clk 0:02:14]}  Qc7 {[%clk 0:02:37]} 16. Qd1 {[%clk 0:01:54]}  Rac8 {[%clk 0:02:37]} 17. Bd3 {[%clk 0:01:51]}  Nxd4 {[%clk 0:02:21]} 18. Bxg6 {[%clk 0:01:38]}  fxg6 {[%clk 0:02:01]} 19. Qxd4 {[%clk 0:01:38]}  Bc5 {[%clk 0:01:58]} 20. Qd2 {[%clk 0:01:38]}  Rf5 {[%clk 0:01:54]} 21. Bg3 {[%clk 0:01:29]}  g5 {[%clk 0:01:53]} 22. Qe2 {[%clk 0:01:14]}  Rcf8 {[%clk 0:01:48]} 23. Rd1 {[%clk 0:01:11]}  Bb6 {[%clk 0:01:45]} 24. Rd3 {[%clk 0:01:03]}  Qf7 {[%clk 0:01:44]} 25. b3 {[%clk 0:00:42]}  h5 {[%clk 0:01:42]} 26. h4 {[%clk 0:00:32]}  gxh4 {[%clk 0:01:40]} 27. Bxh4 {[%clk 0:00:33]}  Rf4 {[%clk 0:01:34]} 28. Bg3 {[%clk 0:00:20]}  Re4 {[%clk 0:01:33]} 29. Qc2 {[%clk 0:00:19]}  Qg6 {[%clk 0:01:27]} 30. c4 {[%clk 0:00:16]}  Rg4 {[%clk 0:01:26]} 31. c5 {[%clk 0:00:12]}  Bxc5 {[%clk 0:01:18]} 32. Qxc5 {[%clk 0:00:12]}  Qxd3 {[%clk 0:01:18]} 33. Qxa7 {[%clk 0:00:09]}  Rxg3 {[%clk 0:01:12]} 34. Qxb7 {[%clk 0:00:06]} 0-1


[Site "https://www.chess.com"]

[Event "Titled Tuesday Blitz May 30 Early 2023"]
[White "FunnyDuck66"]
[Black "Gorovets, Andrey"]
[BlackFideId "13504037"]
[WhiteElo "2384"]
[BlackElo "2459"]
[Result "0-1"]
[Round "08"]
[TimeControl "180+2"]
[Date "2023.05.30"]
[WhiteClock "0:00:09"]
[BlackClock "0:00:09"]

1. d4 {[%clk 0:02:59]}  d5 {[%clk 0:02:58]} 2. c4 {[%clk 0:02:58]}  e6 {[%clk 0:02:58]} 3. Nc3 {[%clk 0:02:58]}  a6 {[%clk 0:02:58]} 4. cxd5 {[%clk 0:02:57]}  exd5 {[%clk 0:02:59]} 5. Bf4 {[%clk 0:02:58]}  Nf6 {[%clk 0:02:57]} 6. e3 {[%clk 0:02:57]}  Bd6 {[%clk 0:02:54]} 7. Bxd6 {[%clk 0:02:54]}  Qxd6 {[%clk 0:02:55]} 8. Bd3 {[%clk 0:02:54]}  Nc6 {[%clk 0:02:47]} 9. Nf3 {[%clk 0:02:52]}  Bg4 {[%clk 0:02:45]} 10. O-O {[%clk 0:02:48]}  O-O {[%clk 0:02:44]} 11. Rc1 {[%clk 0:02:41]}  Ne7 {[%clk 0:02:38]} 12. Ne2 {[%clk 0:02:26]}  Bxf3 {[%clk 0:02:36]} 13. gxf3 {[%clk 0:02:26]}  Ng6 {[%clk 0:02:32]} 14. Ng3 {[%clk 0:02:15]}  Nh4 {[%clk 0:02:31]} 15. Nf5 {[%clk 0:02:07]}  Nxf5 {[%clk 0:02:30]} 16. Bxf5 {[%clk 0:02:08]}  c6 {[%clk 0:02:26]} 17. Qb3 {[%clk 0:02:01]}  Qe7 {[%clk 0:02:19]} 18. Qd3 {[%clk 0:01:56]}  g6 {[%clk 0:02:18]} 19. Bh3 {[%clk 0:01:55]}  a5 {[%clk 0:02:16]} 20. a4 {[%clk 0:01:43]}  Rfe8 {[%clk 0:02:10]} 21. Qb3 {[%clk 0:01:38]}  Qc7 {[%clk 0:02:08]} 22. Qc3 {[%clk 0:01:26]}  Re7 {[%clk 0:02:06]} 23. Qc5 {[%clk 0:01:25]}  Ne8 {[%clk 0:01:56]} 24. Rc3 {[%clk 0:01:21]}  Qd6 {[%clk 0:01:55]} 25. Rfc1 {[%clk 0:01:09]}  Qxc5 {[%clk 0:01:54]} 26. Rxc5 {[%clk 0:01:08]}  Nd6 {[%clk 0:01:54]} 27. Bf1 {[%clk 0:01:06]}  Kg7 {[%clk 0:01:44]} 28. Bd3 {[%clk 0:01:05]}  h6 {[%clk 0:01:35]} 29. Kf1 {[%clk 0:00:54]}  f5 {[%clk 0:01:30]} 30. f4 {[%clk 0:00:51]}  g5 {[%clk 0:01:29]} 31. fxg5 {[%clk 0:00:48]}  hxg5 {[%clk 0:01:30]} 32. Ke2 {[%clk 0:00:47]}  Kf6 {[%clk 0:01:29]} 33. Rg1 {[%clk 0:00:33]}  Rh7 {[%clk 0:01:25]} 34. Rg2 {[%clk 0:00:33]}  Rh4 {[%clk 0:01:21]} 35. f3 {[%clk 0:00:31]}  Rhh8 {[%clk 0:01:15]} 36. Kf2 {[%clk 0:00:31]}  Rhe8 {[%clk 0:01:13]} 37. Rg3 {[%clk 0:00:23]}  Re7 {[%clk 0:01:07]} 38. Rh3 {[%clk 0:00:23]}  Kg6 {[%clk 0:01:06]} 39. Rg3 {[%clk 0:00:19]}  Kf6 {[%clk 0:00:53]} 40. Rh3 {[%clk 0:00:19]}  Nf7 {[%clk 0:00:51]} 41. Rc1 {[%clk 0:00:13]}  Rae8 {[%clk 0:00:50]} 42. Re1 {[%clk 0:00:12]}  Kg6 {[%clk 0:00:44]} 43. Rg3 {[%clk 0:00:11]}  Kf6 {[%clk 0:00:41]} 44. Rh3 {[%clk 0:00:11]}  Rh8 {[%clk 0:00:30]} 45. Rxh8 {[%clk 0:00:11]}  Nxh8 {[%clk 0:00:31]} 46. Rc1 {[%clk 0:00:10]}  Rh7 {[%clk 0:00:28]} 47. Kg2 {[%clk 0:00:09]}  Re7 {[%clk 0:00:25]} 48. Kf2 {[%clk 0:00:09]}  Nf7 {[%clk 0:00:16]} 49. Rc5 {[%clk 0:00:09]}  Nd6 {[%clk 0:00:17]} 50. Rxa5 {[%clk 0:00:09]}  f4 {[%clk 0:00:18]} 51. exf4 {[%clk 0:00:09]}  gxf4 {[%clk 0:00:18]} 52. Ra8 {[%clk 0:00:09]}  Re3 {[%clk 0:00:18]} 53. Be2 {[%clk 0:00:06]}  Nf5 {[%clk 0:00:17]} 54. Rf8+ {[%clk 0:00:06]}  Kg6 {[%clk 0:00:16]} 55. Rg8+ {[%clk 0:00:05]}  Ng7 {[%clk 0:00:11]} 56. h4 {[%clk 0:00:04]}  Rb3 {[%clk 0:00:10]} 57. h5+ {[%clk 0:00:04]}  Kf7 {[%clk 0:00:11]} 58. Rh8 {[%clk 0:00:03]}  Rxb2 {[%clk 0:00:11]} 59. h6 {[%clk 0:00:03]}  Nh5 {[%clk 0:00:09]} 60. Rb8 {[%clk 0:00:01]}  Kg6 {[%clk 0:00:07]} 61. a5 {[%clk 0:00:02]}  Ng3 {[%clk 0:00:06]} 62. a6 {[%clk 0:00:02]}  Rxe2+ {[%clk 0:00:07]} 63. Kg1 {[%clk 0:00:03]}  bxa6 {[%clk 0:00:07]} 64. Rh8 {[%clk 0:00:02]}  Re7 {[%clk 0:00:06]} 65. Rg8+ {[%clk 0:00:02]}  Kxh6 {[%clk 0:00:06]} 66. Ra8 {[%clk 0:00:03]}  Re6 {[%clk 0:00:06]} 67. Rxa6 {[%clk 0:00:04]}  Kg5 {[%clk 0:00:06]} 68. Kg2 {[%clk 0:00:04]}  Nf5 {[%clk 0:00:06]} 69. Kf2 {[%clk 0:00:05]}  Nxd4 {[%clk 0:00:07]} 70. Ra8 {[%clk 0:00:05]}  Nf5 {[%clk 0:00:07]} 71. Rg8+ {[%clk 0:00:06]}  Kf6 {[%clk 0:00:08]} 72. Rh8 {[%clk 0:00:06]}  Ke5 {[%clk 0:00:08]} 73. Rh1 {[%clk 0:00:06]}  c5 {[%clk 0:00:08]} 74. Re1+ {[%clk 0:00:06]}  Ne3 {[%clk 0:00:09]} 75. Rc1 {[%clk 0:00:06]}  c4 {[%clk 0:00:09]} 76. Rd1 {[%clk 0:00:06]}  d4 {[%clk 0:00:10]} 77. Re1 {[%clk 0:00:06]}  c3 {[%clk 0:00:10]} 78. Ke2 {[%clk 0:00:07]}  Kd5 {[%clk 0:00:08]} 79. Kd3 {[%clk 0:00:08]}  Nc4 {[%clk 0:00:08]} 80. Ra1 {[%clk 0:00:07]}  Re3+ {[%clk 0:00:08]} 81. Kc2 {[%clk 0:00:08]}  Re2+ {[%clk 0:00:09]} 82. Kd3 {[%clk 0:00:09]}  Rd2# {[%clk 0:00:09]} 0-1


[Site "https://www.chess.com"]

[Event "Titled Tuesday Blitz May 30 Early 2023"]
[White "Petrosyan, Manuel"]
[Black "Trifan, Andrei Ioan"]
[WhiteFideId "13300857"]
[BlackFideId "12967068"]
[WhiteElo "2576"]
[BlackElo "2208"]
[Result "0-1"]
[Round "08"]
[TimeControl "180+2"]
[Date "2023.05.30"]
[WhiteClock "0:00:00"]
[BlackClock "0:00:18"]

1. e4 {[%clk 0:03:00]}  e5 {[%clk 0:02:56]} 2. Nf3 {[%clk 0:03:01]}  Nc6 {[%clk 0:02:56]} 3. Bb5 {[%clk 0:03:01]}  a6 {[%clk 0:02:56]} 4. Ba4 {[%clk 0:03:01]}  Nf6 {[%clk 0:02:57]} 5. O-O {[%clk 0:02:57]}  Be7 {[%clk 0:02:57]} 6. Re1 {[%clk 0:02:57]}  b5 {[%clk 0:02:56]} 7. Bb3 {[%clk 0:02:56]}  d6 {[%clk 0:02:51]} 8. c3 {[%clk 0:02:56]}  O-O {[%clk 0:02:51]} 9. h3 {[%clk 0:02:56]}  Nb8 {[%clk 0:02:52]} 10. d4 {[%clk 0:02:54]}  Nbd7 {[%clk 0:02:52]} 11. Nbd2 {[%clk 0:02:49]}  Bb7 {[%clk 0:02:53]} 12. Bc2 {[%clk 0:02:49]}  Re8 {[%clk 0:02:53]} 13. Nf1 {[%clk 0:02:49]}  Bf8 {[%clk 0:02:53]} 14. Ng3 {[%clk 0:02:49]}  g6 {[%clk 0:02:54]} 15. a3 {[%clk 0:02:37]}  c5 {[%clk 0:02:53]} 16. b3 {[%clk 0:02:14]}  d5 {[%clk 0:02:37]} 17. dxe5 {[%clk 0:01:39]}  Nxe5 {[%clk 0:02:31]} 18. Nxe5 {[%clk 0:01:39]}  Rxe5 {[%clk 0:02:32]} 19. f4 {[%clk 0:01:32]}  Re8 {[%clk 0:02:30]} 20. e5 {[%clk 0:01:32]}  Nd7 {[%clk 0:02:13]} 21. Qg4 {[%clk 0:01:26]}  Bg7 {[%clk 0:02:12]} 22. Be3 {[%clk 0:01:21]}  Qc8 {[%clk 0:02:05]} 23. Bf2 {[%clk 0:01:05]}  Nf8 {[%clk 0:02:05]} 24. Rad1 {[%clk 0:00:58]}  Qxg4 {[%clk 0:01:58]} 25. hxg4 {[%clk 0:00:58]}  Ne6 {[%clk 0:01:58]} 26. f5 {[%clk 0:00:57]}  Nc7 {[%clk 0:01:58]} 27. Bxc5 {[%clk 0:00:41]}  Bxe5 {[%clk 0:01:47]} 28. Rxe5 {[%clk 0:00:40]}  Rxe5 {[%clk 0:01:48]} 29. Bd6 {[%clk 0:00:40]}  Re3 {[%clk 0:01:48]} 30. Bd3 {[%clk 0:00:26]}  Ne8 {[%clk 0:01:39]} 31. Bf4 {[%clk 0:00:26]}  Re7 {[%clk 0:01:40]} 32. g5 {[%clk 0:00:26]}  Rc8 {[%clk 0:01:36]} 33. Ne2 {[%clk 0:00:24]}  Rd8 {[%clk 0:01:29]} 34. Nd4 {[%clk 0:00:23]}  Nd6 {[%clk 0:01:28]} 35. f6 {[%clk 0:00:20]}  Ree8 {[%clk 0:01:27]} 36. Bxd6 {[%clk 0:00:09]}  Rxd6 {[%clk 0:01:28]} 37. Kf2 {[%clk 0:00:09]}  h6 {[%clk 0:01:22]} 38. gxh6 {[%clk 0:00:05]}  Rxf6+ {[%clk 0:01:22]} 39. Kg1 {[%clk 0:00:04]}  Kh7 {[%clk 0:01:21]} 40. a4 {[%clk 0:00:03]}  bxa4 {[%clk 0:01:17]} 41. bxa4 {[%clk 0:00:04]}  Kxh6 {[%clk 0:01:17]} 42. Rb1 {[%clk 0:00:04]}  Bc6 {[%clk 0:01:11]} 43. Rb6 {[%clk 0:00:03]}  Re3 {[%clk 0:00:27]} 44. Bxa6 {[%clk 0:00:02]}  Rxc3 {[%clk 0:00:22]} 45. Bb7 {[%clk 0:00:02]}  Rc4 {[%clk 0:00:17]} 46. Nxc6 {[%clk 0:00:02]}  d4 {[%clk 0:00:17]} 47. a5 {[%clk 0:00:02]}  d3 {[%clk 0:00:18]} 48. Rb1 {[%clk 0:00:02]}  d2 {[%clk 0:00:18]} 49. Rd1 {[%clk 0:00:00]}  Rc1 {[%clk 0:00:18]} 0-1


[Site "https://www.chess.com"]

[Event "Titled Tuesday Blitz May 30 Early 2023"]
[White "Jeet, Jain"]
[Black "Zhigalko, Sergei"]
[WhiteFideId "5073022"]
[BlackFideId "13502956"]
[WhiteElo "2067"]
[BlackElo "2626"]
[Result "0-1"]
[Round "08"]
[TimeControl "180+2"]
[Date "2023.05.30"]
[WhiteClock "0:00:13"]
[BlackClock "0:00:06"]

1. Nf3 {[%clk 0:02:56]}  d5 {[%clk 0:03:00]} 2. d4 {[%clk 0:02:55]}  e6 {[%clk 0:03:00]} 3. e3 {[%clk 0:02:52]}  Nf6 {[%clk 0:02:59]} 4. Bd3 {[%clk 0:02:52]}  Bd6 {[%clk 0:02:59]} 5. O-O {[%clk 0:02:53]}  b6 {[%clk 0:02:58]} 6. b3 {[%clk 0:02:53]}  Bb7 {[%clk 0:02:59]} 7. Bb2 {[%clk 0:02:54]}  O-O {[%clk 0:02:59]} 8. c4 {[%clk 0:02:54]}  Nbd7 {[%clk 0:02:58]} 9. Ne5 {[%clk 0:02:51]}  dxc4 {[%clk 0:02:50]} 10. Nxc4 {[%clk 0:02:50]}  Re8 {[%clk 0:02:43]} 11. Nxd6 {[%clk 0:02:49]}  cxd6 {[%clk 0:02:44]} 12. Nd2 {[%clk 0:02:47]}  Nf8 {[%clk 0:02:25]} 13. e4 {[%clk 0:02:46]}  Ng6 {[%clk 0:02:24]} 14. g3 {[%clk 0:02:42]}  Rc8 {[%clk 0:02:18]} 15. Qe2 {[%clk 0:02:38]}  Qd7 {[%clk 0:01:53]} 16. h4 {[%clk 0:02:34]}  e5 {[%clk 0:01:37]} 17. d5 {[%clk 0:02:17]}  Qh3 {[%clk 0:01:34]} 18. Qf3 {[%clk 0:02:14]}  Ng4 {[%clk 0:01:14]} 19. Qg2 {[%clk 0:02:14]}  Qxg2+ {[%clk 0:01:15]} 20. Kxg2 {[%clk 0:02:15]}  f5 {[%clk 0:01:15]} 21. exf5 {[%clk 0:02:05]}  Ne7 {[%clk 0:01:14]} 22. Be4 {[%clk 0:01:52]}  Nf6 {[%clk 0:01:04]} 23. f3 {[%clk 0:01:49]}  Nexd5 {[%clk 0:00:33]} 24. Rfc1 {[%clk 0:01:49]}  Nxe4 {[%clk 0:00:26]} 25. Nxe4 {[%clk 0:01:39]}  Ne3+ {[%clk 0:00:26]} 26. Kf2 {[%clk 0:01:38]}  Nxf5 {[%clk 0:00:27]} 27. Ba3 {[%clk 0:01:30]}  d5 {[%clk 0:00:18]} 28. Nd6 {[%clk 0:01:29]}  Nxd6 {[%clk 0:00:18]} 29. Bxd6 {[%clk 0:01:30]}  Rcd8 {[%clk 0:00:06]} 30. Rc7 {[%clk 0:01:19]}  Rxd6 {[%clk 0:00:06]} 31. Rxb7 {[%clk 0:01:19]}  Rc6 {[%clk 0:00:06]} 32. Re1 {[%clk 0:01:07]}  a5 {[%clk 0:00:04]} 33. Rd7 {[%clk 0:01:05]}  d4 {[%clk 0:00:02]} 34. Rxd4 {[%clk 0:01:02]}  Rc2+ {[%clk 0:00:02]} 35. Kf1 {[%clk 0:01:02]}  exd4 {[%clk 0:00:02]} 36. Rxe8+ {[%clk 0:01:01]}  Kf7 {[%clk 0:00:03]} 37. Rd8 {[%clk 0:01:01]}  Rxa2 {[%clk 0:00:03]} 38. Rxd4 {[%clk 0:01:01]}  Rb2 {[%clk 0:00:03]} 39. Rd7+ {[%clk 0:00:47]}  Kf8 {[%clk 0:00:03]} 40. Rd3 {[%clk 0:00:45]}  Ke7 {[%clk 0:00:03]} 41. Ke1 {[%clk 0:00:36]}  h6 {[%clk 0:00:02]} 42. h5 {[%clk 0:00:34]}  Ke6 {[%clk 0:00:02]} 43. Kd1 {[%clk 0:00:34]}  b5 {[%clk 0:00:03]} 44. Kc1 {[%clk 0:00:34]}  Rg2 {[%clk 0:00:03]} 45. g4 {[%clk 0:00:35]}  Rf2 {[%clk 0:00:03]} 46. Kd1 {[%clk 0:00:30]}  Ke5 {[%clk 0:00:04]} 47. Ke1 {[%clk 0:00:30]}  Rb2 {[%clk 0:00:04]} 48. Kd1 {[%clk 0:00:27]}  b4 {[%clk 0:00:04]} 49. Ke1 {[%clk 0:00:27]}  Ke6 {[%clk 0:00:03]} 50. Kd1 {[%clk 0:00:27]}  Ke5 {[%clk 0:00:04]} 51. Ke1 {[%clk 0:00:27]}  Kf4 {[%clk 0:00:04]} 52. Kd1 {[%clk 0:00:26]}  Rf2 {[%clk 0:00:03]} 53. Rd5 {[%clk 0:00:23]}  Rxf3 {[%clk 0:00:03]} 54. Rxa5 {[%clk 0:00:22]}  Rxb3 {[%clk 0:00:03]} 55. Ra7 {[%clk 0:00:23]}  Kxg4 {[%clk 0:00:03]} 56. Rxg7+ {[%clk 0:00:23]}  Kxh5 {[%clk 0:00:04]} 57. Kc2 {[%clk 0:00:23]}  Rc3+ {[%clk 0:00:04]} 58. Kb2 {[%clk 0:00:23]}  Rc4 {[%clk 0:00:04]} 59. Kb3 {[%clk 0:00:23]}  Rg4 {[%clk 0:00:04]} 60. Re7 {[%clk 0:00:22]}  Kh4 {[%clk 0:00:04]} 61. Rh7 {[%clk 0:00:21]}  h5 {[%clk 0:00:04]} 62. Rh8 {[%clk 0:00:22]}  Rf4 {[%clk 0:00:05]} 63. Rh7 {[%clk 0:00:22]}  Kg4 {[%clk 0:00:05]} 64. Rg7+ {[%clk 0:00:23]}  Kf3 {[%clk 0:00:05]} 65. Rh7 {[%clk 0:00:22]}  h4 {[%clk 0:00:06]} 66. Kc2 {[%clk 0:00:22]}  Kg3 {[%clk 0:00:05]} 67. Kb3 {[%clk 0:00:22]}  h3 {[%clk 0:00:06]} 68. Rg7+ {[%clk 0:00:22]}  Rg4 {[%clk 0:00:06]} 69. Rh7 {[%clk 0:00:13]}  h2 {[%clk 0:00:06]} 0-1


[Site "https://www.chess.com"]

[Event "Titled Tuesday Blitz May 30 Early 2023"]
[White "Sethuraman, S.P."]
[Black "Dehtiarov, Roman"]
[WhiteFideId "5021596"]
[BlackFideId "14186640"]
[WhiteElo "2543"]
[BlackElo "2189"]
[Result "1-0"]
[Round "08"]
[TimeControl "180+2"]
[Date "2023.05.30"]
[WhiteClock "0:00:19"]
[BlackClock "0:00:02"]

1. d4 {[%clk 0:03:00]}  Nf6 {[%clk 0:02:57]} 2. c4 {[%clk 0:03:00]}  e6 {[%clk 0:02:53]} 3. Nf3 {[%clk 0:02:59]}  b6 {[%clk 0:02:53]} 4. h3 {[%clk 0:02:59]}  Bb7 {[%clk 0:02:51]} 5. Nc3 {[%clk 0:02:59]}  Bb4 {[%clk 0:02:50]} 6. Qb3 {[%clk 0:02:58]}  c5 {[%clk 0:02:50]} 7. Bg5 {[%clk 0:02:56]}  h6 {[%clk 0:02:48]} 8. Bh4 {[%clk 0:02:53]}  g5 {[%clk 0:02:47]} 9. Bg3 {[%clk 0:02:53]}  Ne4 {[%clk 0:02:45]} 10. e3 {[%clk 0:02:50]}  Nxg3 {[%clk 0:02:26]} 11. fxg3 {[%clk 0:02:51]}  Qf6 {[%clk 0:02:15]} 12. Be2 {[%clk 0:02:50]}  Nc6 {[%clk 0:02:04]} 13. O-O {[%clk 0:02:49]}  Qg7 {[%clk 0:02:05]} 14. d5 {[%clk 0:02:29]}  Ne7 {[%clk 0:01:43]} 15. Nb5 {[%clk 0:02:27]}  O-O {[%clk 0:01:34]} 16. a3 {[%clk 0:02:27]}  Ba5 {[%clk 0:01:34]} 17. Nd6 {[%clk 0:02:27]}  Ba6 {[%clk 0:01:26]} 18. e4 {[%clk 0:02:18]}  exd5 {[%clk 0:01:22]} 19. exd5 {[%clk 0:02:15]}  Qg6 {[%clk 0:01:11]} 20. Nb5 {[%clk 0:02:04]}  Bxb5 {[%clk 0:01:11]} 21. Qxb5 {[%clk 0:02:05]}  Nf5 {[%clk 0:00:10]} 22. Bd3 {[%clk 0:01:45]}  Nd6 {[%clk 0:00:09]} 23. Qb3 {[%clk 0:01:41]}  Qg7 {[%clk 0:00:09]} 24. Qc2 {[%clk 0:01:30]}  Rae8 {[%clk 0:00:08]} 25. Rab1 {[%clk 0:01:24]}  b5 {[%clk 0:00:07]} 26. cxb5 {[%clk 0:01:20]}  Bb6 {[%clk 0:00:08]} 27. Kh2 {[%clk 0:01:20]}  f5 {[%clk 0:00:08]} 28. b3 {[%clk 0:01:16]}  f4 {[%clk 0:00:05]} 29. g4 {[%clk 0:01:11]}  Re3 {[%clk 0:00:05]} 30. a4 {[%clk 0:01:07]}  Rfe8 {[%clk 0:00:03]} 31. Bc4 {[%clk 0:01:03]}  Nf7 {[%clk 0:00:03]} 32. d6 {[%clk 0:01:03]}  Kh8 {[%clk 0:00:03]} 33. Qd2 {[%clk 0:01:00]}  Ne5 {[%clk 0:00:03]} 34. Ng1 {[%clk 0:00:50]}  Nxc4 {[%clk 0:00:03]} 35. bxc4 {[%clk 0:00:50]}  Qd4 {[%clk 0:00:03]} 36. Qc2 {[%clk 0:00:45]}  Qxd6 {[%clk 0:00:03]} 37. Rbd1 {[%clk 0:00:44]}  Qe7 {[%clk 0:00:02]} 38. Nf3 {[%clk 0:00:44]}  Bc7 {[%clk 0:00:02]} 39. Qg6 {[%clk 0:00:40]}  Qe6 {[%clk 0:00:02]} 40. Qh5 {[%clk 0:00:37]}  Bb6 {[%clk 0:00:02]} 41. Nxg5 {[%clk 0:00:36]}  Qf6 {[%clk 0:00:03]} 42. Nf3 {[%clk 0:00:34]}  Qg7 {[%clk 0:00:03]} 43. Rd6 {[%clk 0:00:33]}  Kh7 {[%clk 0:00:02]} 44. g5 {[%clk 0:00:33]}  Bc7 {[%clk 0:00:02]} 45. Rxh6+ {[%clk 0:00:33]}  Kg8 {[%clk 0:00:02]} 46. Rd1 {[%clk 0:00:30]}  R8e6 {[%clk 0:00:03]} 47. Rxe6 {[%clk 0:00:28]}  Rxe6 {[%clk 0:00:03]} 48. Qg4 {[%clk 0:00:28]}  Bb8 {[%clk 0:00:02]} 49. Qf5 {[%clk 0:00:27]}  Bd6 {[%clk 0:00:02]} 50. a5 {[%clk 0:00:26]}  Qf7 {[%clk 0:00:02]} 51. Qd5 {[%clk 0:00:25]}  Qe7 {[%clk 0:00:01]} 52. b6 {[%clk 0:00:24]}  axb6 {[%clk 0:00:02]} 53. axb6 {[%clk 0:00:25]}  Kg7 {[%clk 0:00:03]} 54. b7 {[%clk 0:00:25]}  Bb8 {[%clk 0:00:02]} 55. Qxd7 {[%clk 0:00:25]}  Kg6 {[%clk 0:00:02]} 56. Qc8 {[%clk 0:00:24]}  Qc7 {[%clk 0:00:02]} 57. Qg8+ {[%clk 0:00:22]}  Kf5 {[%clk 0:00:02]} 58. Rd5+ {[%clk 0:00:19]}  Ke4 {[%clk 0:00:02]} 1-0


[Site "https://www.chess.com"]

[Event "Titled Tuesday Blitz May 30 Early 2023"]
[White "Miranda, Rafael"]
[Black "Hayrapetyan, Hovik"]
[WhiteFideId "130990"]
[BlackFideId "13302639"]
[WhiteElo "2204"]
[BlackElo "2348"]
[Result "0-1"]
[Round "08"]
[TimeControl "180+2"]
[Date "2023.05.30"]
[WhiteClock "0:00:36"]
[BlackClock "0:00:45"]

1. e4 {[%clk 0:03:00]}  c5 {[%clk 0:02:58]} 2. Nf3 {[%clk 0:03:00]}  d6 {[%clk 0:02:59]} 3. c3 {[%clk 0:03:01]}  Nf6 {[%clk 0:02:58]} 4. h3 {[%clk 0:03:01]}  Nc6 {[%clk 0:02:57]} 5. Bd3 {[%clk 0:03:01]}  g6 {[%clk 0:02:57]} 6. O-O {[%clk 0:03:01]}  Bg7 {[%clk 0:02:57]} 7. Re1 {[%clk 0:03:02]}  O-O {[%clk 0:02:57]} 8. Bf1 {[%clk 0:03:03]}  e5 {[%clk 0:02:57]} 9. d4 {[%clk 0:02:53]}  cxd4 {[%clk 0:02:56]} 10. cxd4 {[%clk 0:02:54]}  exd4 {[%clk 0:02:57]} 11. Nxd4 {[%clk 0:02:54]}  d5 {[%clk 0:02:57]} 12. e5 {[%clk 0:02:49]}  Ne4 {[%clk 0:02:50]} 13. Nxc6 {[%clk 0:02:48]}  bxc6 {[%clk 0:02:50]} 14. Nd2 {[%clk 0:02:45]}  Bxe5 {[%clk 0:02:41]} 15. Nxe4 {[%clk 0:02:37]}  dxe4 {[%clk 0:02:42]} 16. Bh6 {[%clk 0:02:30]}  Qxd1 {[%clk 0:02:26]} 17. Raxd1 {[%clk 0:02:30]}  Re8 {[%clk 0:02:26]} 18. Rxe4 {[%clk 0:02:29]}  Bf5 {[%clk 0:02:26]} 19. Re2 {[%clk 0:02:16]}  Bg7 {[%clk 0:01:58]} 20. Bxg7 {[%clk 0:02:13]}  Kxg7 {[%clk 0:01:58]} 21. Rc1 {[%clk 0:02:05]}  Rad8 {[%clk 0:01:48]} 22. Rxe8 {[%clk 0:01:57]}  Rxe8 {[%clk 0:01:49]} 23. Rxc6 {[%clk 0:01:47]}  Re1 {[%clk 0:01:49]} 24. Rc3 {[%clk 0:01:48]}  h5 {[%clk 0:01:44]} 25. h4 {[%clk 0:01:46]}  Bd7 {[%clk 0:01:35]} 26. f4 {[%clk 0:01:38]}  Ra1 {[%clk 0:01:21]} 27. Kf2 {[%clk 0:01:21]}  Rxa2 {[%clk 0:01:19]} 28. Rb3 {[%clk 0:01:21]}  Be6 {[%clk 0:01:15]} 29. Rb7 {[%clk 0:01:18]}  a5 {[%clk 0:01:15]} 30. Kg3 {[%clk 0:01:18]}  Kf6 {[%clk 0:01:12]} 31. Bd3 {[%clk 0:01:17]}  a4 {[%clk 0:01:11]} 32. Rb4 {[%clk 0:01:17]}  a3 {[%clk 0:01:09]} 33. f5 {[%clk 0:01:10]}  gxf5 {[%clk 0:00:43]} 34. bxa3 {[%clk 0:00:40]}  Rxa3 {[%clk 0:00:44]} 35. Rd4 {[%clk 0:00:40]}  Ke5 {[%clk 0:00:45]} 36. Rd8 {[%clk 0:00:36]}  Bc4 {[%clk 0:00:45]} 0-1


[Site "https://www.chess.com"]